fUST/lending_fUST_20240910
["ID","MTS","AMOUNT","RATE_DAILY","PERIOD"]
[337675175,1725939060739,-500.0,0.00022191,2]
[337675176,1725939060748,-500.0,0.00022191,2]
[337675177,1725939060757,-500.0,0.00022191,2]
[337675178,1725939060766,-500.0,0.00022191,2]
[337675179,1725939060775,-500.0,0.00022191,2]
[337675180,1725939060785,-500.0,0.00022191,2]
[337675181,1725939060794,-868.53,0.00022191,2]
[337675182,1725939060804,-500.0,0.00022191,2]
[337675183,1725939060815,-505.55480534,0.00022191,2]
[337675184,1725939060826,-500.0,0.00022191,2]
[337675185,1725939060836,-567.95,0.00022191,2]
[337675186,1725939060848,-916.71,0.00022191,2]
[337675187,1725939060859,-608.54,0.00022191,2]
[337675188,1725939060868,-500.0,0.00022191,2]
[337675189,1725939060878,-500.0,0.00022191,2]
[337675190,1725939060888,-500.0,0.00022191,2]
[337675191,1725939060897,-500.0,0.00022191,2]
[337675192,1725939060906,-407.14117254,0.00022191,2]
[337675193,1725939060916,-1287.36,0.00022191,2]
[337675194,1725939060925,-1990.7,0.00022191,2]
[337675195,1725939060935,-1099.19,0.00022191,2]
[337675196,1725939060944,-500.0,0.00022191,2]
[337675197,1725939060953,-500.0,0.00022191,2]
[337675198,1725939060963,-1210.41,0.00022191,2]
[337675199,1725939060972,-692.71,0.00022191,2]
[337675200,1725939060982,-500.0,0.00022191,2]
[337675201,1725939060993,-501.02926265,0.00022191,2]
[337675202,1725939061002,-500.0,0.00022191,2]
[337675203,1725939061012,-500.0,0.00022191,2]
[337675204,1725939061021,-500.0,0.00022191,2]
[337675205,1725939061031,-1145.91,0.00022191,2]
[337675206,1725939061040,-1427.61,0.00022191,2]
[337675207,1725939061049,-500.0,0.00022191,2]
[337675208,1725939061058,-500.0,0.00022191,2]
[337675209,1725939061068,-500.0,0.00022191,2]
[337675210,1725939061077,-500.0,0.00022191,2]
[337675211,1725939061088,-722.6,0.00022191,2]
[337675212,1725939061101,-500.0,0.00022191,2]
[337675213,1725939061111,-2031.08,0.00022191,2]
[337675214,1725939061121,-1564.66,0.00022191,2]
[337675215,1725939061132,-1870.34,0.00022191,2]
[337675216,1725939061142,-500.0,0.00022191,2]
[337675217,1725939061153,-500.0,0.00022191,2]
[337675218,1725939061162,-2021.67,0.00022191,2]
[337675219,1725939061171,-500.0,0.00022191,2]
[337675220,1725939061180,-500.0,0.00022191,2]
[337675221,1725939061190,-509.34,0.00022191,2]
[337675222,1725939061199,-500.0,0.00022191,2]
[337675223,1725939061209,-510.91589276,0.00022191,2]
[337675224,1725939061218,-500.0,0.00022191,2]
[337675225,1725939061227,-500.0,0.00022191,2]
[337675226,1725939061236,-701.74,0.00022191,2]
[337675227,1725939061245,-500.0,0.00022191,2]
[337675228,1725939061255,-500.0,0.00022191,2]
[337675229,1725939061264,-500.0,0.00022191,2]
[337675230,1725939061273,-1033.92,0.00022191,2]
[337675231,1725939061282,-500.0,0.00022191,2]
[337675232,1725939061291,-628.73,0.00022191,2]
[337675233,1725939061300,-500.0,0.00022191,2]
[337675234,1725939061308,-500.0,0.00022191,2]
[337675235,1725939061318,-672.66,0.00022191,2]
[337675236,1725939061327,-2651.99,0.00022191,2]
[337675237,1725939061336,-500.0,0.00022191,2]
[337675238,1725939061345,-78442.61,0.00022191,2]
[337675239,1725939061354,-5051.4,0.00022191,2]
[337675240,1725939061363,-7063.46,0.00022191,2]
[337675241,1725939061372,-519.81,0.00022191,2]
[337675242,1725939061381,-500.0,0.00022191,2]
[337675243,1725939061390,-500.0,0.00022191,2]
[337675244,1725939061400,-1307.93,0.00022191,2]
[337675245,1725939061409,-725.99,0.00022191,2]
[337675246,1725939061419,-500.0,0.00022191,2]
[337675247,1725939061428,-500.0,0.00022191,2]
[337675248,1725939061437,-1586.18,0.00022191,2]
[337675249,1725939061446,-578.27,0.00022191,2]
[337675250,1725939061455,-506.46123002,0.00022191,2]
[337675251,1725939061464,-624.1,0.00022191,2]
[337675252,1725939061473,-500.0,0.00022191,2]
[337675253,1725939061482,-2107.95,0.00022191,2]
[337675254,1725939061492,-4603.23,0.00022191,2]
[337675255,1725939061502,-500.0,0.00022191,2]
[337675256,1725939061511,-1051.85,0.00022191,2]
[337675257,1725939061519,-500.0,0.00022191,2]
[337675258,1725939061528,-500.0,0.00022191,2]
[337675259,1725939061538,-500.0,0.00022191,2]
[337675260,1725939061555,-500.0,0.00022191,2]
[337675261,1725939061573,-228.15259625,0.00022191,2]
[337675262,1725939061590,-820.23,0.00022191,2]
[337675263,1725939061599,-500.0,0.00022191,2]
[337675264,1725939061610,-340.00527328,0.00022191,2]
[337675265,1725939061621,-841.25,0.00022191,2]
[337675266,1725939061630,-500.0,0.00022191,2]
[337675267,1725939061639,-891.47,0.00022191,2]
[337675268,1725939061649,-500.0,0.00022191,2]
[337675269,1725939061658,-1644.75,0.00022191,2]
[337675270,1725939061668,-1032.44,0.00022191,2]
[337675271,1725939061678,-500.0,0.00022191,2]
[337675272,1725939061689,-534.64,0.00022191,2]
[337675273,1725939061700,-907.37,0.00022191,2]
[337675274,1725939061710,-500.0,0.00022191,2]
[337675275,1725939061719,-218.15357974,0.00022191,2]
[337675276,1725939061728,-500.0,0.00022191,2]
[337675277,1725939061737,-4754.32,0.00022191,2]
[337675278,1725939061747,-500.0,0.00022191,2]
[337675279,1725939061757,-873.06,0.00022191,2]
[337675280,1725939061767,-502.91650469,0.00022191,2]
[337675281,1725939061776,-2252.89,0.00022191,2]
[337675282,1725939061785,-503.81408358,0.00022191,2]
[337675283,1725939061794,-500.0,0.00022191,2]
[337675284,1725939061803,-194.70510989,0.00022191,2]
[337675285,1725939061812,-500.0,0.00022191,2]
[337675286,1725939061822,-7933.51,0.00022191,2]
[337675287,1725939061831,-2603.98,0.00022191,2]
[337675288,1725939061840,-500.0,0.00022191,2]
[337675289,1725939061850,-534.77,0.00022191,2]
[337675290,1725939061859,-500.0,0.00022191,2]
[337675291,1725939061869,-500.0,0.00022191,2]
[337675292,1725939061879,-8856.77,0.00022191,2]
[337675293,1725939061889,-1904.32,0.00022191,2]
[337675294,1725939061899,-500.0,0.00022191,2]
[337675295,1725939061908,-1125.18,0.00022191,2]
[337675296,1725939061924,-500.0,0.00022191,2]
[337675297,1725939061933,-502.15114129,0.00022191,2]
[337675298,1725939061943,-1474.28,0.00022191,2]
[337675299,1725939061953,-1728.83,0.00022191,2]
[337675300,1725939061962,-1131.85,0.00022191,2]
[337675301,1725939061971,-500.0,0.00022191,2]
[337675302,1725939061981,-500.0,0.00022191,2]
[337675303,1725939061990,-500.0,0.00022191,2]
[337675304,1725939062000,-4885.63,0.00022191,2]
[337675305,1725939062010,-2166.69,0.00022191,2]
[337675306,1725939062019,-500.0,0.00022191,2]
[337675307,1725939062028,-500.0,0.00022191,2]
[337675308,1725939062038,-1094.82,0.00022191,2]
[337675309,1725939062048,-500.0,0.00022191,2]
[337675310,1725939062058,-2268.52,0.00022191,2]
[337675311,1725939062067,-1475.2,0.00022191,2]
[337675312,1725939062077,-500.0,0.00022191,2]
[337675313,1725939062086,-500.0,0.00022191,2]
[337675314,1725939062096,-500.0,0.00022191,2]
[337675315,1725939062106,-500.0,0.00022191,2]
[337675316,1725939062115,-1003.24,0.00022191,2]
[337675317,1725939062124,-500.0,0.00022191,2]
[337675318,1725939062134,-541.25,0.00022191,2]
[337675319,1725939062143,-1809.76,0.00022191,2]
[337675320,1725939062152,-500.0,0.00022191,2]
[337675321,1725939062162,-1709.98,0.00022191,2]
[337675322,1725939062171,-500.0,0.00022191,2]
[337675323,1725939062180,-4653.86,0.00022191,2]
[337675324,1725939062190,-500.0,0.00022191,2]
[337675325,1725939062199,-1023.42,0.00022191,2]
[337675326,1725939062208,-500.0,0.00022191,2]
[337675327,1725939062220,-4927.61,0.00022191,2]
[337675328,1725939062229,-426.54432643,0.00022191,2]
[337675329,1725939062239,-500.0,0.00022191,2]
[337675330,1725939062248,-503.46756715,0.00022191,2]
[337675331,1725939062257,-500.0,0.00022191,2]
[337675332,1725939062381,-500.0,0.00022191,2]
[337675333,1725939062390,-1823.31,0.00022191,2]
[337675334,1725939062399,-500.0,0.00022191,2]
[337675335,1725939062409,-500.0,0.00022191,2]
[337675336,1725939062421,-178.54290633,0.00022191,2]
[337675337,1725939062431,-2211.34,0.00022191,2]
[337675338,1725939062441,-524.91,0.00022191,2]
[337675339,1725939062453,-500.0,0.00022191,2]
[337675340,1725939062463,-571.97,0.00022191,2]
[337675341,1725939062473,-1173.75,0.00022191,2]
[337675342,1725939062483,-1623.16,0.00022191,2]
[337675343,1725939062495,-504.63005103,0.00022191,2]
[337675344,1725939062508,-735.11,0.00022191,2]
[337675345,1725939062518,-500.0,0.00022191,2]
[337675346,1725939062529,-500.0,0.00022191,2]
[337675347,1725939062539,-933.41,0.00022191,2]
[337675348,1725939062547,-3206.04,0.00022191,2]
[337675349,1725939062557,-928.42,0.00022191,2]
[337675350,1725939062568,-500.0,0.00022191,2]
[337675351,1725939062577,-684.91,0.00022191,2]
[337675352,1725939062587,-1569.32,0.00022191,2]
[337675353,1725939062596,-500.0,0.00022191,2]
[337675354,1725939062606,-500.0,0.00022191,2]
[337675355,1725939062616,-500.0,0.00022191,2]
[337675356,1725939062627,-707.51,0.00022191,2]
[337675357,1725939062638,-3824.01,0.00022191,2]
[337675358,1725939062651,-500.0,0.00022191,2]
[337675359,1725939062662,-500.0,0.00022191,2]
[337675360,1725939062672,-1306.86,0.00022191,2]
[337675361,1725939062682,-7056.03,0.00022191,2]
[337675362,1725939062691,-1683.97,0.00022191,2]
[337675363,1725939062702,-2013.7,0.00022191,2]
[337675364,1725939062713,-577.66,0.00022191,2]
[337675365,1725939062722,-500.0,0.00022191,2]
[337675366,1725939062733,-825.05,0.00022191,2]
[337675367,1725939062743,-500.0,0.00022191,2]
[337675368,1725939062753,-500.0,0.00022191,2]
[337675369,1725939062762,-500.0,0.00022191,2]
[337675370,1725939062772,-1315.48,0.00022191,2]
[337675371,1725939062782,-726.66,0.00022191,2]
[337675372,1725939062793,-500.0,0.00022191,2]
[337675373,1725939062802,-676.55,0.00022191,2]
[337675374,1725939062811,-859.6,0.00022191,2]
[337675375,1725939062820,-500.0,0.00022191,2]
[337675376,1725939062830,-500.0,0.00022191,2]
[337675377,1725939062839,-504.21402138,0.00022191,2]
[337675378,1725939062849,-557.31,0.00022191,2]
[337675379,1725939062858,-500.0,0.00022191,2]
[337675380,1725939062868,-502.98841147,0.00022191,2]
[337675381,1725939062877,-500.0,0.00022191,2]
[337675382,1725939062887,-669.74,0.00022191,2]
[337675383,1725939062897,-61374.88445835,0.00022191,2]
[337675384,1725939063236,-757.05915268,0.00022191,2]
[337675400,1725939619295,388.17,0.00026,60]
[337675640,1725940047936,1549.9,0.00028,120]
[337675694,1725940237795,-500.0,0.00017808,2]
[337675695,1725940237806,-300.0,0.00018932,2]
[337675696,1725940237815,-300.0,0.00018932,2]
[337675697,1725940237824,-24900.0,0.00018933,2]
[337675698,1725940237834,-178.275199,0.00019178,2]
[337675699,1725940237843,-173.3062977,0.00019315,2]
[337675700,1725940237853,-250.0,0.00019463,2]
[337675701,1725940237864,-250.0,0.00019516,2]
[337675702,1725940237878,-250.0,0.0001957,2]
[337675703,1725940237888,-250.0,0.00019623,2]
[337675704,1725940237900,-250.0,0.00019676,2]
[337675705,1725940237909,-250.0,0.0001973,2]
[337675706,1725940237918,-250.0,0.00019783,2]
[337675707,1725940237927,-250.0,0.00019837,2]
[337675708,1725940237936,-250.0,0.0001989,2]
[337675709,1725940237946,-250.0,0.00019943,2]
[337675710,1725940237955,-250.0,0.00019997,2]
[337675711,1725940237965,-250.0,0.0002005,2]
[337675712,1725940237974,-250.0,0.00020103,2]
[337675713,1725940237984,-250.0,0.00020157,2]
[337675714,1725940237994,-250.0,0.0002021,2]
[337675715,1725940238005,-2859.00586509,0.00020217,2]
[337675716,1725940238016,-250.0,0.00020264,2]
[337675717,1725940238025,-250.0,0.00020317,2]
[337675718,1725940238034,-250.0,0.0002037,2]
[337675719,1725940238043,-250.0,0.00020424,2]
[337675720,1725940238053,-250.0,0.00020477,2]
[337675721,1725940238062,-412.0,0.00020637,2]
[337675722,1725940238072,-251.0,0.00020822,2]
[337675723,1725940238082,-420.0,0.00020825,2]
[337675724,1725940238091,-1000.0,0.00020838,2]
[337675725,1725940238101,-638.36,0.00020912,3]
[337675726,1725940238111,-319.18,0.00020912,3]
[337675727,1725940238122,-159.59,0.00020912,3]
[337675728,1725940238131,-478.77,0.00020912,3]
[337675729,1725940238141,-500.0,0.00020921,2]
[337675730,1725940238150,-500.0,0.00020921,2]
[337675731,1725940238161,-500.0,0.00020921,2]
[337675732,1725940238170,-500.0,0.00020921,2]
[337675733,1725940238180,-500.0,0.00020921,2]
[337675734,1725940238189,-382.79408671,0.00020921,2]
[337675735,1725940238200,-500.0,0.00020921,2]
[337675736,1725940238209,-500.0,0.00020921,2]
[337675737,1725940238219,-500.0,0.00020921,2]
[337675738,1725940238230,-500.0,0.00020921,2]
[337675739,1725940238239,-500.0,0.00020921,2]
[337675740,1725940238249,-500.00000002,0.00020921,2]
[337675741,1725940238258,-500.0,0.00020921,2]
[337675742,1725940238267,-500.0,0.00020921,2]
[337675743,1725940238277,-500.0,0.00020921,2]
[337675744,1725940238286,-500.0,0.00020921,2]
[337675745,1725940238295,-500.0,0.00020921,2]
[337675746,1725940238305,-500.0,0.00020921,2]
[337675747,1725940238314,-500.0,0.00020921,2]
[337675748,1725940238325,-500.0,0.00020921,2]
[337675749,1725940238335,-372.72933838,0.00020921,2]
[337675750,1725940238346,-500.0,0.00020921,2]
[337675751,1725940238358,-500.0,0.00020921,2]
[337675752,1725940238369,-500.0,0.00020921,2]
[337675753,1725940238379,-500.0,0.00020921,2]
[337675754,1725940238388,-500.0,0.00020921,2]
[337675755,1725940238397,-500.0,0.00020921,2]
[337675756,1725940238406,-500.0,0.00020921,2]
[337675757,1725940238415,-500.0,0.00020921,2]
[337675758,1725940238425,-500.0,0.00020921,2]
[337675759,1725940238434,-500.0,0.00020921,2]
[337675760,1725940238445,-154902.84821394,0.00020923,3]
[337675761,1725940238460,-11749.05719706,0.00020923,3]
[337675762,1725940238470,-4785.75724938,0.00020923,3]
[337675763,1725940238479,-2859.00586509,0.00021033,2]
[337675764,1725940238488,-153.0,0.00021096,2]
[337675765,1725940238498,-208.3247076,0.00021096,2]
[337675766,1725940238509,-208.3247076,0.00021096,2]
[337675767,1725940238520,-153.0,0.00021096,2]
[337675768,1725940238531,-416.5896257,0.00021096,2]
[337675769,1725940238544,-208.3247076,0.00021096,2]
[337675770,1725940238554,-153.0,0.00021096,2]
[337675771,1725940238566,-208.3247076,0.00021096,2]
[337675772,1725940238576,-452.3594445,0.00021096,2]
[337675773,1725940238586,-208.3247076,0.00021096,2]
[337675774,1725940238595,-500.0,0.000211,2]
[337675775,1725940238604,-501.99078751,0.000211,2]
[337675776,1725940238613,-291.57336843,0.00021132,2]
[337675777,1725940238625,-500.0,0.00021132,2]
[337675778,1725940238635,-500.0,0.00021132,2]
[337675779,1725940238820,-500.0,0.00021132,2]
[337675780,1725940238829,-424.98437826,0.00021132,2]
[337675781,1725940238839,-500.0,0.00021132,2]
[337675782,1725940238847,-500.0,0.00021132,2]
[337675783,1725940238857,-500.0,0.00021132,2]
[337675784,1725940238867,-500.0,0.00021132,2]
[337675785,1725940238876,-500.0,0.00021132,2]
[337675786,1725940238886,-500.0,0.00021132,2]
[337675787,1725940238899,-500.0,0.00021132,2]
[337675788,1725940238908,-500.0,0.00021132,2]
[337675789,1725940238917,-500.0,0.00021132,2]
[337675790,1725940238926,-500.0,0.00021132,2]
[337675791,1725940238936,-500.0,0.00021132,2]
[337675792,1725940238945,-194.60260638,0.00021132,2]
[337675793,1725940238954,-500.0,0.00021132,2]
[337675794,1725940238964,-500.0,0.00021132,2]
[337675795,1725940238974,-333303.810822,0.00021133,3]
[337675796,1725940238984,-28714.5434963,0.00021133,3]
[337675797,1725940238994,-160.0,0.0002114,3]
[337675798,1725940239003,-4000.0,0.00021153,2]
[337675799,1725940239013,-4000.0,0.00021207,2]
[337675800,1725940239023,-4000.0,0.00021262,2]
[337675801,1725940239032,-4000.0,0.00021317,2]
[337675802,1725940239042,-415.9340625,0.0002137,2]
[337675803,1725940239052,-208.2649181,0.0002137,2]
[337675804,1725940239062,-4000.0,0.00021372,2]
[337675805,1725940239071,-365.39279457,0.00021427,2]
[337675806,1725940239080,-1200.67092025,0.00021797,2]
[337675807,1725940239090,-3000.0,0.00021817,2]
[337675808,1725940239100,-13820.01424132,0.00021817,2]
[337675809,1725940239109,-2859.00586509,0.00021848,2]
[337675810,1725940239118,-500.0,0.00021873,2]
[337675811,1725940239128,-500.0,0.00021873,2]
[337675812,1725940239137,-311.8627149,0.00021873,2]
[337675813,1725940239147,-28714.5434963,0.00021877,3]
[337675814,1725940239157,-23928.7862469,0.00021887,3]
[337675815,1725940239166,-9571.51449876,0.00021897,3]
[337675816,1725940239176,-500.0,0.00021917,2]
[337675817,1725940239186,-503.99604972,0.00021917,2]
[337675818,1725940239195,-500.0,0.00021917,2]
[337675819,1725940239205,-500.0,0.00021917,2]
[337675820,1725940239215,-505.74362933,0.00021917,2]
[337675821,1725940239224,-504.00187416,0.00021917,2]
[337675822,1725940239234,-347.87524726,0.00021917,2]
[337675823,1725940239243,-502.5173526,0.00021917,2]
[337675824,1725940239253,-170.81479821,0.00021917,2]
[337675825,1725940239262,-500.0,0.00021917,2]
[337675826,1725940239275,-500.0,0.00021917,2]
[337675827,1725940239285,-1519.53,0.00021917,2]
[337675828,1725940239294,-500.0,0.00021917,2]
[337675829,1725940239303,-519.88591458,0.00021917,2]
[337675830,1725940239314,-500.0,0.00021917,2]
[337675831,1725940239324,-500.0,0.00021917,2]
[337675832,1725940239333,-515.63751268,0.00021917,2]
[337675833,1725940239343,-500.0,0.00021917,2]
[337675834,1725940239353,-500.0,0.00021917,2]
[337675835,1725940239362,-500.0,0.00021917,2]
[337675836,1725940239373,-824.78,0.00021917,2]
[337675837,1725940239384,-505.9266985,0.00021917,2]
[337675838,1725940239394,-500.0,0.00021917,2]
[337675839,1725940239404,-500.0,0.00021917,2]
[337675840,1725940239414,-500.0,0.00021917,2]
[337675841,1725940239425,-718.42,0.00021917,2]
[337675842,1725940239435,-505.76296098,0.00021917,2]
[337675843,1725940239447,-500.0,0.00021917,2]
[337675844,1725940239457,-500.0,0.00021917,2]
[337675845,1725940239467,-511.04696333,0.00021917,2]
[337675846,1725940239477,-500.0,0.00021917,2]
[337675847,1725940239489,-500.0,0.00021917,2]
[337675848,1725940239500,-500.0,0.00021917,2]
[337675849,1725940239510,-500.0,0.00021917,2]
[337675850,1725940239523,-500.0,0.00021917,2]
[337675851,1725940239532,-590.4,0.00021917,2]
[337675852,1725940239542,-1592.89,0.00021917,2]
[337675854,1725940239553,-500.0,0.00021917,2]
[337675855,1725940239565,-500.0,0.00021917,2]
[337675856,1725940239575,-500.0,0.00021917,2]
[337675857,1725940239585,-500.0,0.00021917,2]
[337675858,1725940239595,-500.0,0.00021917,2]
[337675859,1725940239608,-500.0,0.00021917,2]
[337675860,1725940239620,-500.0,0.00021917,2]
[337675861,1725940239629,-506.45396888,0.00021917,2]
[337675862,1725940239641,-884.05,0.00021917,2]
[337675863,1725940239653,-500.0,0.00021917,2]
[337675864,1725940239665,-500.0,0.00021917,2]
[337675865,1725940239675,-307.55917204,0.00021917,2]
[337675866,1725940239688,-500.0,0.00021917,2]
[337675867,1725940239698,-500.0,0.00021917,2]
[337675868,1725940239710,-500.0,0.00021917,2]
[337675869,1725940239720,-500.0,0.00021917,2]
[337675870,1725940239729,-500.0,0.00021917,2]
[337675871,1725940239739,-500.0,0.00021917,2]
[337675872,1725940239750,-500.0,0.00021917,2]
[337675873,1725940239762,-500.0,0.00021917,2]
[337675874,1725940239772,-544.93,0.00021917,2]
[337675875,1725940239782,-502.26417928,0.00021917,2]
[337675876,1725940239791,-500.0,0.00021917,2]
[337675877,1725940239803,-500.0,0.00021917,2]
[337675878,1725940239814,-500.0,0.00021917,2]
[337675879,1725940239824,-1953.39,0.00021917,2]
[337675881,1725940239836,-500.0,0.00021917,2]
[337675884,1725940239847,-590.8,0.00021917,2]
[337675886,1725940239858,-1082.3,0.00021917,2]
[337675888,1725940239869,-500.0,0.00021917,2]
[337675890,1725940239880,-500.0,0.00021917,2]
[337675892,1725940239893,-500.0,0.00021917,2]
[337675894,1725940239904,-759.6,0.00021917,2]
[337675897,1725940239916,-500.0,0.00021917,2]
[337675899,1725940239928,-500.0,0.00021917,2]
[337675901,1725940239940,-500.0,0.00021917,2]
[337675903,1725940239952,-500.0,0.00021917,2]
[337675906,1725940239964,-655.23,0.00021917,2]
[337675907,1725940239974,-500.0,0.00021917,2]
[337675908,1725940239983,-500.0,0.00021917,2]
[337675909,1725940239993,-500.0,0.00021917,2]
[337675910,1725940240003,-500.0,0.00021917,2]
[337675911,1725940240012,-506.6441311,0.00021917,2]
[337675912,1725940240022,-500.0,0.00021917,2]
[337675913,1725940240031,-500.0,0.00021917,2]
[337675914,1725940240040,-500.0,0.00021917,2]
[337675915,1725940240050,-1275.97,0.00021917,2]
[337675916,1725940240059,-500.0,0.00021917,2]
[337675917,1725940240070,-500.0,0.00021917,2]
[337675918,1725940240080,-634.99,0.00021917,2]
[337675919,1725940240089,-557.83,0.00021917,2]
[337675920,1725940240099,-505.55480534,0.00021917,2]
[337675921,1725940240108,-500.0,0.00021917,2]
[337675922,1725940240118,-500.0,0.00021917,2]
[337675923,1725940240127,-500.0,0.00021917,2]
[337675924,1725940240137,-1368.12,0.00021917,2]
[337675925,1725940240146,-500.0,0.00021917,2]
[337675926,1725940240156,-500.0,0.00021917,2]
[337675927,1725940240165,-500.0,0.00021917,2]
[337675928,1725940240175,-500.0,0.00021917,2]
[337675929,1725940240184,-500.0,0.00021917,2]
[337675930,1725940240195,-730.66,0.00021917,2]
[337675931,1725940240205,-500.0,0.00021917,2]
[337675932,1725940240215,-500.0,0.00021917,2]
[337675933,1725940240225,-500.0,0.00021917,2]
[337675934,1725940240235,-500.0,0.00021917,2]
[337675935,1725940240244,-500.0,0.00021917,2]
[337675936,1725940240254,-500.0,0.00021917,2]
[337675937,1725940240264,-500.0,0.00021917,2]
[337675938,1725940240275,-500.0,0.00021917,2]
[337675939,1725940240285,-500.0,0.00021917,2]
[337675940,1725940240295,-500.0,0.00021917,2]
[337675941,1725940240305,-500.0,0.00021917,2]
[337675942,1725940240315,-500.0,0.00021917,2]
[337675943,1725940240325,-500.0,0.00021917,2]
[337675944,1725940240334,-500.0,0.00021917,2]
[337675945,1725940240343,-500.0,0.00021917,2]
[337675946,1725940240353,-500.0,0.00021917,2]
[337675947,1725940240362,-500.0,0.00021917,2]
[337675948,1725940240372,-500.0,0.00021917,2]
[337675949,1725940240382,-184.50119739,0.00021917,2]
[337675950,1725940240391,-500.0,0.00021917,2]
[337675951,1725940240401,-500.0,0.00021917,2]
[337675952,1725940240410,-987.54,0.00021917,2]
[337675953,1725940240419,-536.91,0.00021917,2]
[337675954,1725940240428,-500.0,0.00021917,2]
[337675955,1725940240438,-500.0,0.00021917,2]
[337675956,1725940240449,-500.0,0.00021917,2]
[337675957,1725940240459,-500.0,0.00021917,2]
[337675958,1725940240469,-764.09,0.00021917,2]
[337675959,1725940240479,-500.0,0.00021917,2]
[337675960,1725940240490,-500.0,0.00021917,2]
[337675961,1725940240500,-500.0,0.00021917,2]
[337675962,1725940240511,-500.0,0.00021917,2]
[337675963,1725940240522,-500.0,0.00021917,2]
[337675964,1725940240533,-500.0,0.00021917,2]
[337675965,1725940240544,-212.92267992,0.00021917,2]
[337675966,1725940240555,-500.0,0.00021917,2]
[337675967,1725940240564,-500.0,0.00021917,2]
[337675968,1725940240574,-151.0,0.00021917,2]
[337675969,1725940240584,-500.0,0.00021917,2]
[337675970,1725940240594,-500.0,0.00021917,2]
[337675971,1725940240604,-500.0,0.00021917,2]
[337675972,1725940240615,-500.0,0.00021917,2]
[337675973,1725940240627,-500.0,0.00021917,2]
[337675974,1725940240637,-500.0,0.00021917,2]
[337675975,1725940240647,-500.0,0.00021917,2]
[337675976,1725940240658,-500.0,0.00021917,2]
[337675977,1725940240667,-500.0,0.00021917,2]
[337675978,1725940240678,-500.0,0.00021917,2]
[337675979,1725940240688,-510.21552978,0.00021917,2]
[337675980,1725940240698,-500.0,0.00021917,2]
[337675981,1725940240708,-500.0,0.00021917,2]
[337675982,1725940240718,-500.0,0.00021917,2]
[337675983,1725940240728,-504.72525001,0.00021917,2]
[337675984,1725940240737,-907.37,0.00021917,2]
[337675985,1725940240748,-500.0,0.00021917,2]
[337675986,1725940240757,-500.0,0.00021917,2]
[337675987,1725940240769,-500.0,0.00021917,2]
[337675988,1725940240778,-1411.78,0.00021917,2]
[337675989,1725940240789,-841.25,0.00021917,2]
[337675990,1725940240799,-747.34,0.00021917,2]
[337675991,1725940240808,-500.0,0.00021917,2]
[337675992,1725940240817,-500.0,0.00021917,2]
[337675993,1725940240827,-500.0,0.00021917,2]
[337675994,1725940240837,-505.11,0.00021917,2]
[337675995,1725940240846,-195.94427851,0.00021917,2]
[337675996,1725940240856,-500.0,0.00021917,2]
[337675997,1725940240865,-500.0,0.00021917,2]